[Event "Early-Titled-Tuesday-Blitz-January-16-2024"]
[Site "Chess.com"]
[Date "2024.01.16"]
[Round "5"]
[White "VeraVujovic"]
[Black "giomar27"]
[Result "0-1"]
[WhiteElo "2228"]
[BlackElo "2419"]
[TimeControl "180+1"]
[EndTime "8:59:25 PST"]
[Termination "giomar27 won by resignation"]

1. e4 {[%clk 0:03:00.9]} 1... g6 {[%clk 0:03:00]} 2. d4 {[%clk 0:03:00.4]} 2...
Bg7 {[%clk 0:03:00.9]} 3. c4 {[%clk 0:03:00]} 3... d6 {[%clk 0:02:55.4]} 4. Nc3
{[%clk 0:03:00.3]} 4... e5 {[%clk 0:02:55.4]} 5. d5 {[%clk 0:02:56]} 5... a5
{[%clk 0:02:54.6]} 6. Nf3 {[%clk 0:02:45.8]} 6... Na6 {[%clk 0:02:54.3]} 7. Be3
{[%clk 0:02:44.7]} 7... f5 {[%clk 0:02:47.3]} 8. Bd3 {[%clk 0:02:39.7]} 8... f4
{[%clk 0:02:45.5]} 9. Bd2 {[%clk 0:02:36.3]} 9... Nh6 {[%clk 0:02:45.8]} 10. h3
{[%clk 0:02:33.4]} 10... O-O {[%clk 0:02:44.6]} 11. Na4 {[%clk 0:02:20.3]} 11...
b6 {[%clk 0:02:39.9]} 12. a3 {[%clk 0:02:17.5]} 12... g5 {[%clk 0:02:35]} 13. b4
{[%clk 0:02:13.6]} 13... axb4 {[%clk 0:02:35.1]} 14. axb4 {[%clk 0:02:13.6]}
14... Bd7 {[%clk 0:02:35.8]} 15. b5 {[%clk 0:02:11.3]} 15... Nc5 {[%clk
0:02:35.1]} 16. Nxc5 {[%clk 0:02:10.7]} 16... Rxa1 {[%clk 0:02:32.1]} 17. Qxa1
{[%clk 0:02:10.5]} 17... bxc5 {[%clk 0:02:32.2]} 18. Qa7 {[%clk 0:02:00.5]}
18... Nf7 {[%clk 0:02:31.1]} 19. Ba5 {[%clk 0:01:57.4]} 19... Qa8 {[%clk
0:02:22.3]} 20. Qxc7 {[%clk 0:01:49]} 20... Rc8 {[%clk 0:02:21.3]} 21. Qb6
{[%clk 0:01:10.2]} 21... Rb8 {[%clk 0:02:20.8]} 22. Qa6 {[%clk 0:01:06]} 22...
Qxa6 {[%clk 0:02:16.1]} 23. bxa6 {[%clk 0:01:06.9]} 23... Ra8 {[%clk 0:02:17]}
24. O-O {[%clk 0:00:54.8]} 24... Rxa6 {[%clk 0:02:17.1]} 25. Ra1 {[%clk
0:00:54.6]} 25... h5 {[%clk 0:02:14.7]} 26. Bc3 {[%clk 0:00:53]} 26... Rxa1+
{[%clk 0:02:14.2]} 27. Bxa1 {[%clk 0:00:53.9]} 27... g4 {[%clk 0:02:14.8]} 28.
hxg4 {[%clk 0:00:53.3]} 28... hxg4 {[%clk 0:02:15.7]} 29. Nd2 {[%clk 0:00:45.1]}
29... Kf8 {[%clk 0:02:13.2]} 30. f3 {[%clk 0:00:44.7]} 30... Ke7 {[%clk
0:02:11.9]} 31. Be2 {[%clk 0:00:43.8]} 31... Nh6 {[%clk 0:02:03.1]} 32. Nf1
{[%clk 0:00:36.5]} 32... Bf6 {[%clk 0:02:01]} 33. Nh2 {[%clk 0:00:36.2]} 33...
g3 {[%clk 0:02:01.1]} 34. Nf1 {[%clk 0:00:35.8]} 34... Kf7 {[%clk 0:02:01.4]}
35. Nd2 {[%clk 0:00:36.1]} 35... Bd8 {[%clk 0:02:01.5]} 36. Bc3 {[%clk
0:00:35.1]} 36... Ba4 {[%clk 0:02:01.1]} 37. Kf1 {[%clk 0:00:33.1]} 37... Ke7
{[%clk 0:02:00.6]} 38. Ke1 {[%clk 0:00:32.1]} 38... Kd7 {[%clk 0:02:01.1]} 39.
Bd1 {[%clk 0:00:31.9]} 39... Bxd1 {[%clk 0:01:58.4]} 40. Kxd1 {[%clk 0:00:32.3]}
40... Nf7 {[%clk 0:01:14.9]} 41. Nb3 {[%clk 0:00:23.7]} 41... Ng5 {[%clk
0:01:12.5]} 42. Ke2 {[%clk 0:00:22.5]} 42... Bc7 {[%clk 0:01:05.2]} 43. Bd2
{[%clk 0:00:22.6]} 43... Nh7 {[%clk 0:01:03]} 44. Bc3 {[%clk 0:00:22.6]} 44...
Nf6 {[%clk 0:01:03]} 45. Nd2 {[%clk 0:00:21.2]} 45... Ne8 {[%clk 0:01:02.5]} 46.
Nb3 {[%clk 0:00:21.4]} 46... Bd8 {[%clk 0:01:02.5]} 47. Nd2 {[%clk 0:00:21.2]}
47... Nc7 {[%clk 0:01:02.7]} 48. Nb3 {[%clk 0:00:19.2]} 48... Na8 {[%clk
0:01:03.2]} 49. Nd2 {[%clk 0:00:17.7]} 49... Kc8 {[%clk 0:01:03.1]} 50. Nb3
{[%clk 0:00:18.6]} 50... Kb7 {[%clk 0:01:03.3]} 51. Kd3 {[%clk 0:00:19.5]} 51...
Ka6 {[%clk 0:01:03.4]} 52. Nd2 {[%clk 0:00:19.4]} 52... Nb6 {[%clk 0:01:02.4]}
53. Nb3 {[%clk 0:00:19.6]} 53... Nd7 {[%clk 0:01:02.3]} 54. Nd2 {[%clk
0:00:19.5]} 54... Nf6 {[%clk 0:01:02.7]} 55. Nb3 {[%clk 0:00:19.6]} 55... Nh7
{[%clk 0:01:02.9]} 56. Ke2 {[%clk 0:00:19.2]} 56... Ng5 {[%clk 0:01:03]} 57. Bd2
{[%clk 0:00:18.1]} 57... Bb6 {[%clk 0:01:03.2]} 58. Bc3 {[%clk 0:00:18]} 58...
Nf7 {[%clk 0:01:03.4]} 59. Bd2 {[%clk 0:00:18.4]} 59... Nd8 {[%clk 0:01:03.6]}
60. Bc3 {[%clk 0:00:19]} 60... Nb7 {[%clk 0:01:03.5]} 61. Bd2 {[%clk 0:00:19.2]}
61... Na5 {[%clk 0:01:01.7]} 62. Nxa5 {[%clk 0:00:19]} 62... Bxa5 {[%clk
0:01:01.8]} 63. Bc1 {[%clk 0:00:19.7]} 63... Bb4 {[%clk 0:01:00]} 64. Kd3 {[%clk
0:00:20.4]} 64... Ka5 {[%clk 0:00:56]} 65. Kc2 {[%clk 0:00:20.4]} 65... Ka4
{[%clk 0:00:56.1]} 66. Bb2 {[%clk 0:00:20.8]} 66... Be1 {[%clk 0:00:53.8]} 67.
Bc1 {[%clk 0:00:20.6]} 67... Kb4 {[%clk 0:00:52]} 68. Kd3 {[%clk 0:00:20.8]}
68... Kb3 {[%clk 0:00:52.5]} 69. Ke2 {[%clk 0:00:20.7]} 69... Bb4 {[%clk
0:00:50]} 70. Kd3 {[%clk 0:00:20.9]} 70... Bc3 {[%clk 0:00:50.2]} 71. Ba3 {[%clk
0:00:15.3]} 71... Kxa3 {[%clk 0:00:48.1]} 72. Kxc3 {[%clk 0:00:16.2]} 72... Ka4
{[%clk 0:00:48.6]} 73. Kc2 {[%clk 0:00:15.2]} 73... Kb4 {[%clk 0:00:49.1]} 74.
Kd3 {[%clk 0:00:15.7]} 74... Kb3 {[%clk 0:00:49.7]} 75. Kd2 {[%clk 0:00:16]}
75... Kxc4 {[%clk 0:00:50.6]} 76. Kc2 {[%clk 0:00:16.6]} 76... Kd4 {[%clk
0:00:51.3]} 77. Kd2 {[%clk 0:00:17.5]} 77... c4 {[%clk 0:00:51.8]} 78. Kc2
{[%clk 0:00:18.4]} 78... Ke3 {[%clk 0:00:52.2]} 79. Kc3 {[%clk 0:00:19.3]} 79...
Kf2 {[%clk 0:00:52.7]} 80. Kxc4 {[%clk 0:00:20.2]} 80... Kxg2 {[%clk 0:00:53.3]}
81. Kb5 {[%clk 0:00:21.1]} 81... Kxf3 {[%clk 0:00:53.8]} 82. Kc6 {[%clk
0:00:22]} 82... g2 {[%clk 0:00:54.5]} 83. Kxd6 {[%clk 0:00:22.9]} 83... g1=Q
{[%clk 0:00:55]} 84. Kxe5 {[%clk 0:00:23.8]} 84... Qg6 {[%clk 0:00:54.7]} 85. d6
{[%clk 0:00:24.4]} 85... Qxe4+ {[%clk 0:00:55.6]} 0-1

[Event "Early-Titled-Tuesday-Blitz-January-16-2024"]
[Site "Chess.com"]
[Date "2024.01.16"]
[Round "5"]
[White "kidagent"]
[Black "Adar_07"]
[Result "0-1"]
[WhiteElo "2275"]
[BlackElo "2674"]
[TimeControl "180+1"]
[EndTime "8:59:27 PST"]
[Termination "Adar_07 won by resignation"]

1. c4 {[%clk 0:03:00.9]} 1... Nf6 {[%clk 0:02:59.6]} 2. g3 {[%clk 0:03:00.5]}
2... e5 {[%clk 0:02:59.6]} 3. Bg2 {[%clk 0:02:58.5]} 3... c6 {[%clk 0:03:00]} 4.
d4 {[%clk 0:02:57]} 4... exd4 {[%clk 0:02:59.8]} 5. Qxd4 {[%clk 0:02:57.6]} 5...
d5 {[%clk 0:03:00.7]} 6. Nf3 {[%clk 0:02:54.4]} 6... dxc4 {[%clk 0:02:57.6]} 7.
Qxd8+ {[%clk 0:02:53.8]} 7... Kxd8 {[%clk 0:02:58.5]} 8. O-O {[%clk 0:02:51.6]}
8... Nbd7 {[%clk 0:02:34.4]} 9. Rd1 {[%clk 0:02:48]} 9... Ke8 {[%clk 0:02:32.9]}
10. a4 {[%clk 0:02:41.9]} 10... Nc5 {[%clk 0:02:28.9]} 11. Ne5 {[%clk
0:02:28.1]} 11... Nb3 {[%clk 0:02:21.8]} 12. Ra2 {[%clk 0:02:27.2]} 12... Be6
{[%clk 0:02:16.7]} 13. Na3 {[%clk 0:02:16.2]} 13... Bxa3 {[%clk 0:02:07.8]} 14.
Rxa3 {[%clk 0:02:15]} 14... Rd8 {[%clk 0:02:07.9]} 15. Rxd8+ {[%clk 0:02:06.5]}
15... Kxd8 {[%clk 0:02:08.8]} 16. Bg5 {[%clk 0:02:06.1]} 16... Kc8 {[%clk
0:02:08.1]} 17. Bf1 {[%clk 0:01:43.8]} 17... Rd8 {[%clk 0:01:34.2]} 18. Kg2
{[%clk 0:01:42.9]} 18... Rd1 {[%clk 0:01:32.9]} 19. Nf3 {[%clk 0:01:17.9]} 19...
Ne4 {[%clk 0:01:31]} 20. Be3 {[%clk 0:01:16.9]} 20... b6 {[%clk 0:01:22.9]} 21.
a5 {[%clk 0:01:16.2]} 21... b5 {[%clk 0:01:23.1]} 22. h3 {[%clk 0:01:06.8]}
22... a6 {[%clk 0:01:18.6]} 23. g4 {[%clk 0:01:04.6]} 23... c3 {[%clk
0:01:09.2]} 24. bxc3 {[%clk 0:01:03]} 24... Nxc3 {[%clk 0:01:10.1]} 25. Nd4
{[%clk 0:00:49.1]} 25... Bd5+ {[%clk 0:00:59.7]} 26. f3 {[%clk 0:00:48.1]} 26...
Nxd4 {[%clk 0:00:54.4]} 27. Rxc3 {[%clk 0:00:47.1]} 27... b4 {[%clk 0:00:55]}
28. Bxd4 {[%clk 0:00:35.4]} 28... bxc3 {[%clk 0:00:46]} 29. Bxc3 {[%clk
0:00:36.3]} 29... Bc4 {[%clk 0:00:46.2]} 30. Kf2 {[%clk 0:00:35]} 30... f6
{[%clk 0:00:46]} 31. f4 {[%clk 0:00:30.8]} 31... c5 {[%clk 0:00:45.4]} 32. Bg2
{[%clk 0:00:29.7]} 32... Rc1 {[%clk 0:00:44.8]} 33. Bd2 {[%clk 0:00:28.7]} 33...
Ra1 {[%clk 0:00:43.7]} 34. Bf3 {[%clk 0:00:21.5]} 34... Ra2 {[%clk 0:00:42.6]}
35. Be3 {[%clk 0:00:19.9]} 35... Rxa5 {[%clk 0:00:42.9]} 36. Bd2 {[%clk
0:00:19.6]} 36... Rb5 {[%clk 0:00:42]} 37. Ke3 {[%clk 0:00:19.3]} 37... Bf7
{[%clk 0:00:40.9]} 38. Bc3 {[%clk 0:00:20.2]} 38... a5 {[%clk 0:00:40.2]} 39.
Kd2 {[%clk 0:00:20.3]} 39... a4 {[%clk 0:00:40.4]} 40. Bc6 {[%clk 0:00:20.3]}
40... Rb6 {[%clk 0:00:29]} 41. Bxa4 {[%clk 0:00:20.8]} 41... Ra6 {[%clk
0:00:29.7]} 42. Bc2 {[%clk 0:00:20.3]} 42... Ra2 {[%clk 0:00:28.9]} 43. Kc1
{[%clk 0:00:20.5]} 43... h6 {[%clk 0:00:26.4]} 44. h4 {[%clk 0:00:19.9]} 44...
Kd8 {[%clk 0:00:23.7]} 45. g5 {[%clk 0:00:19.5]} 45... hxg5 {[%clk 0:00:23.8]}
46. hxg5 {[%clk 0:00:19.2]} 46... fxg5 {[%clk 0:00:24.7]} 47. fxg5 {[%clk
0:00:19.6]} 47... g6 {[%clk 0:00:24.6]} 48. Bf6+ {[%clk 0:00:19.2]} 48... Ke8
{[%clk 0:00:24]} 49. Bd3 {[%clk 0:00:18.4]} 49... c4 {[%clk 0:00:23.7]} 50. Bc2
{[%clk 0:00:18.1]} 50... Ra5 {[%clk 0:00:21.6]} 51. Kd2 {[%clk 0:00:17.7]} 51...
Ra3 {[%clk 0:00:20.9]} 52. Bb2 {[%clk 0:00:16.6]} 52... Rh3 {[%clk 0:00:20.7]}
53. Bf6 {[%clk 0:00:16.4]} 53... Kd7 {[%clk 0:00:21]} 54. Ba4+ {[%clk
0:00:14.8]} 54... Kd6 {[%clk 0:00:20.9]} 55. Bc2 {[%clk 0:00:14.9]} 55... Kc5
{[%clk 0:00:21.1]} 56. Bc3 {[%clk 0:00:14.1]} 56... Rg3 {[%clk 0:00:20.9]} 57.
Bf6 {[%clk 0:00:14.1]} 57... Kb5 {[%clk 0:00:19.2]} 58. Be7 {[%clk 0:00:13.8]}
58... c3+ {[%clk 0:00:18.4]} 59. Ke1 {[%clk 0:00:12.6]} 59... Rg1+ {[%clk
0:00:16.5]} 60. Kf2 {[%clk 0:00:12.4]} 60... Rc1 {[%clk 0:00:17.4]} 61. Bd3+
{[%clk 0:00:12.5]} 61... Ka4 {[%clk 0:00:14.8]} 62. Ke3 {[%clk 0:00:12.8]} 62...
Kb3 {[%clk 0:00:14.4]} 63. Bf6 {[%clk 0:00:11.3]} 63... c2 {[%clk 0:00:13.7]}
64. Kd2 {[%clk 0:00:10.8]} 64... Rd1+ {[%clk 0:00:14.1]} 65. Ke3 {[%clk
0:00:10.8]} 65... c1=Q+ {[%clk 0:00:15]} 66. Kf2 {[%clk 0:00:09.8]} 66... Qf4+
{[%clk 0:00:15]} 0-1

[Event "Early-Titled-Tuesday-Blitz-January-16-2024"]
[Site "Chess.com"]
[Date "2024.01.16"]
[Round "5"]
[White "Franmu14"]
[Black "frederiksvane"]
[Result "1-0"]
[WhiteElo "2701"]
[BlackElo "2898"]
[TimeControl "180+1"]
[EndTime "8:59:28 PST"]
[Termination "Franmu14 won on time"]

1. e4 {[%clk 0:03:00.9]} 1... e5 {[%clk 0:02:58.7]} 2. Nc3 {[%clk 0:03:01.3]}
2... Nf6 {[%clk 0:02:58.4]} 3. Nf3 {[%clk 0:03:02]} 3... Nc6 {[%clk 0:02:58.5]}
4. Bb5 {[%clk 0:03:02.6]} 4... Bd6 {[%clk 0:02:57.5]} 5. Bxc6 {[%clk 0:03:01.6]}
5... dxc6 {[%clk 0:02:57.3]} 6. d3 {[%clk 0:03:02.5]} 6... O-O {[%clk
0:02:56.2]} 7. h3 {[%clk 0:03:03.1]} 7... Re8 {[%clk 0:02:56.1]} 8. Be3 {[%clk
0:03:02.8]} 8... Nd7 {[%clk 0:02:55.8]} 9. g4 {[%clk 0:03:02.1]} 9... Nf8 {[%clk
0:02:54]} 10. Ne2 {[%clk 0:03:02.2]} 10... Ne6 {[%clk 0:02:52.2]} 11. Ng3 {[%clk
0:03:02.3]} 11... c5 {[%clk 0:02:35.6]} 12. c3 {[%clk 0:02:56.3]} 12... b6
{[%clk 0:02:10.7]} 13. Qd2 {[%clk 0:02:54.1]} 13... a5 {[%clk 0:02:08.9]} 14.
O-O-O {[%clk 0:02:53.9]} 14... a4 {[%clk 0:02:09.5]} 15. Kb1 {[%clk 0:02:53.2]}
15... a3 {[%clk 0:02:09.9]} 16. b3 {[%clk 0:02:53.5]} 16... Bb7 {[%clk
0:02:01.7]} 17. h4 {[%clk 0:02:50.7]} 17... b5 {[%clk 0:02:00]} 18. Ng5 {[%clk
0:02:20.2]} 18... c4 {[%clk 0:01:34.4]} 19. dxc4 {[%clk 0:02:18.7]} 19... bxc4
{[%clk 0:01:35.3]} 20. b4 {[%clk 0:02:19.2]} 20... Qc8 {[%clk 0:01:29.9]} 21. f3
{[%clk 0:02:15]} 21... Nf4 {[%clk 0:01:25.8]} 22. Bxf4 {[%clk 0:02:11.1]} 22...
exf4 {[%clk 0:01:26.7]} 23. Nf5 {[%clk 0:02:11.4]} 23... h6 {[%clk 0:01:01.5]}
24. Nh3 {[%clk 0:01:40.4]} 24... Be5 {[%clk 0:00:56]} 25. g5 {[%clk 0:01:21.2]}
25... h5 {[%clk 0:00:49.6]} 26. Nxf4 {[%clk 0:01:15.8]} 26... c5 {[%clk
0:00:49.8]} 27. g6 {[%clk 0:01:01.5]} 27... fxg6 {[%clk 0:00:20.7]} 28. Nxg6
{[%clk 0:01:00.2]} 28... cxb4 {[%clk 0:00:21.3]} 29. Nge7+ {[%clk 0:00:58.4]}
29... Kh8 {[%clk 0:00:15.7]} 30. Nxc8 {[%clk 0:00:57.8]} 30... Raxc8 {[%clk
0:00:16.6]} 31. Nd6 {[%clk 0:00:28.7]} 31... bxc3 {[%clk 0:00:14.4]} 32. Qg5
{[%clk 0:00:25.6]} 32... Rb8 {[%clk 0:00:13]} 33. Kc2 {[%clk 0:00:20.6]} 33...
Bc6 {[%clk 0:00:12.2]} 34. Qxh5+ {[%clk 0:00:20]} 34... Kg8 {[%clk 0:00:12.3]}
35. Qf7+ {[%clk 0:00:20.4]} 35... Kh8 {[%clk 0:00:12.4]} 36. Nxc4 {[%clk
0:00:19.6]} 36... Ba4+ {[%clk 0:00:12.4]} 37. Kd3 {[%clk 0:00:20]} 37... c2
{[%clk 0:00:09.8]} 38. Rc1 {[%clk 0:00:19.8]} 38... Bb2 {[%clk 0:00:09.4]} 39.
Qh5+ {[%clk 0:00:18.1]} 39... Kg8 {[%clk 0:00:09.6]} 40. Ne3 {[%clk 0:00:13.3]}
40... Bb5+ {[%clk 0:00:06.2]} 41. Nc4 {[%clk 0:00:13.6]} 41... Red8+ {[%clk
0:00:05.2]} 42. Ke3 {[%clk 0:00:12.2]} 42... Bxc4 {[%clk 0:00:02.9]} 43. Rxc2
{[%clk 0:00:12.7]} 43... Bd4+ {[%clk 0:00:02.9]} 44. Kf4 {[%clk 0:00:12.6]}
44... Rf8+ {[%clk 0:00:02.9]} 45. Kg3 {[%clk 0:00:12.6]} 45... Bf7 {[%clk
0:00:03.3]} 46. Qg4 {[%clk 0:00:11.8]} 46... Bb2 {[%clk 0:00:03.5]} 47. Rd1
{[%clk 0:00:11.1]} 47... Bxa2 {[%clk 0:00:03.5]} 48. Rd7 {[%clk 0:00:10.9]}
48... Rf7 {[%clk 0:00:03.8]} 49. Rcc7 {[%clk 0:00:10.4]} 49... Rbf8 {[%clk
0:00:02.2]} 50. Rxf7 {[%clk 0:00:10.3]} 50... Bxf7 {[%clk 0:00:02.3]} 51. Ra7
{[%clk 0:00:10.1]} 51... a2 {[%clk 0:00:02.4]} 52. h5 {[%clk 0:00:06.9]} 52...
a1=Q {[%clk 0:00:01.4]} 53. Rxa1 {[%clk 0:00:07.8]} 53... Bxa1 {[%clk 0:00:02]}
54. f4 {[%clk 0:00:08.3]} 54... Kh7 {[%clk 0:00:01.8]} 55. e5 {[%clk 0:00:08.5]}
55... Bd4 {[%clk 0:00:01.7]} 56. Qf5+ {[%clk 0:00:08.9]} 56... Kg8 {[%clk
0:00:01.9]} 57. Qg5 {[%clk 0:00:08.4]} 57... Re8 {[%clk 0:00:01.8]} 58. h6
{[%clk 0:00:08.7]} 58... g6 {[%clk 0:00:01.5]} 59. Qf6 {[%clk 0:00:09.2]} 59...
Kf8 {[%clk 0:00:01.2]} 60. h7 {[%clk 0:00:08.9]} 1-0

[Event "Early-Titled-Tuesday-Blitz-January-16-2024"]
[Site "Chess.com"]
[Date "2024.01.16"]
[Round "5"]
[White "LangesNasenhaar"]
[Black "MokshAD1603"]
[Result "0-1"]
[WhiteElo "2427"]
[BlackElo "2609"]
[TimeControl "180+1"]
[EndTime "8:59:28 PST"]
[Termination "MokshAD1603 won by checkmate"]

1. d4 {[%clk 0:03:00.9]} 1... d5 {[%clk 0:02:49.6]} 2. Nc3 {[%clk 0:02:59.5]}
2... c6 {[%clk 0:02:47.2]} 3. Bf4 {[%clk 0:02:59.7]} 3... Bf5 {[%clk 0:02:45.8]}
4. e3 {[%clk 0:03:00]} 4... Nd7 {[%clk 0:02:45.7]} 5. Nf3 {[%clk 0:03:00.6]}
5... e6 {[%clk 0:02:45.3]} 6. Ne5 {[%clk 0:03:01.1]} 6... Ngf6 {[%clk
0:02:44.3]} 7. g4 {[%clk 0:03:00.4]} 7... Nxe5 {[%clk 0:02:27.7]} 8. gxf5 {[%clk
0:02:56.1]} 8... Ned7 {[%clk 0:02:27.3]} 9. fxe6 {[%clk 0:02:53.8]} 9... fxe6
{[%clk 0:02:28.2]} 10. Bh3 {[%clk 0:02:49.6]} 10... Bb4 {[%clk 0:02:21.7]} 11.
Qd3 {[%clk 0:02:40.6]} 11... Qe7 {[%clk 0:02:17]} 12. O-O-O {[%clk 0:02:37.6]}
12... O-O-O {[%clk 0:02:14.6]} 13. f3 {[%clk 0:02:24.7]} 13... Bd6 {[%clk
0:02:11.4]} 14. Bg5 {[%clk 0:02:20.8]} 14... h6 {[%clk 0:02:09.5]} 15. Bh4
{[%clk 0:02:20.7]} 15... g5 {[%clk 0:02:07.3]} 16. Bf2 {[%clk 0:02:15]} 16...
Kb8 {[%clk 0:02:06.6]} 17. e4 {[%clk 0:02:10.4]} 17... dxe4 {[%clk 0:02:00.3]}
18. fxe4 {[%clk 0:02:10.1]} 18... Bf4+ {[%clk 0:02:00.5]} 19. Kb1 {[%clk
0:02:10.2]} 19... Ne5 {[%clk 0:01:44.6]} 20. Qe2 {[%clk 0:02:02.9]} 20... Ng6
{[%clk 0:01:41.7]} 21. Qc4 {[%clk 0:01:41.6]} 21... Rhe8 {[%clk 0:01:37.9]} 22.
Qa4 {[%clk 0:01:30.5]} 22... a6 {[%clk 0:01:31]} 23. Qb3 {[%clk 0:01:09.7]}
23... Bc7 {[%clk 0:01:28.9]} 24. Be3 {[%clk 0:01:02.8]} 24... Nf4 {[%clk
0:01:28]} 25. Bf1 {[%clk 0:00:59.6]} 25... Ka8 {[%clk 0:01:28.6]} 26. a4 {[%clk
0:00:43.1]} 26... Ba5 {[%clk 0:01:27.2]} 27. e5 {[%clk 0:00:33.8]} 27... Ng4
{[%clk 0:01:25.4]} 28. Bg1 {[%clk 0:00:29]} 28... Qb4 {[%clk 0:01:17.9]} 29.
Qxb4 {[%clk 0:00:25.7]} 29... Bxb4 {[%clk 0:01:18.8]} 30. Ne4 {[%clk 0:00:26.3]}
30... Rf8 {[%clk 0:01:16.5]} 31. h3 {[%clk 0:00:25.1]} 31... Nxe5 {[%clk
0:01:13.8]} 32. c3 {[%clk 0:00:20.3]} 32... Be7 {[%clk 0:01:12.6]} 33. Be3
{[%clk 0:00:15.8]} 33... Nd5 {[%clk 0:01:10.5]} 34. Bc1 {[%clk 0:00:13.4]} 34...
Ng6 {[%clk 0:01:05.4]} 35. Bc4 {[%clk 0:00:13.1]} 35... Nh4 {[%clk 0:00:59.7]}
36. Ng3 {[%clk 0:00:10.1]} 36... Bd6 {[%clk 0:00:58.5]} 37. Ne4 {[%clk
0:00:09.5]} 37... Bf4 {[%clk 0:00:59]} 38. Rhe1 {[%clk 0:00:08.8]} 38... Bxc1
{[%clk 0:00:58.9]} 39. Kxc1 {[%clk 0:00:08.9]} 39... Nf4 {[%clk 0:00:53.6]} 40.
Nc5 {[%clk 0:00:08.3]} 40... Rde8 {[%clk 0:00:43.1]} 41. Nxe6 {[%clk 0:00:07.5]}
41... Nxe6 {[%clk 0:00:43.4]} 42. Bxe6 {[%clk 0:00:07.2]} 42... Kb8 {[%clk
0:00:42.8]} 43. Bg4 {[%clk 0:00:07.1]} 43... Kc7 {[%clk 0:00:43.4]} 44. Rxe8
{[%clk 0:00:06.6]} 44... Rxe8 {[%clk 0:00:44.3]} 45. Rf1 {[%clk 0:00:07.1]}
45... Ng2 {[%clk 0:00:39.2]} 46. Rf7+ {[%clk 0:00:06.1]} 46... Kb6 {[%clk
0:00:38.4]} 47. Rh7 {[%clk 0:00:06.2]} 47... Re1+ {[%clk 0:00:33.9]} 48. Kc2
{[%clk 0:00:06.5]} 48... Rg1 {[%clk 0:00:30.6]} 49. Kb3 {[%clk 0:00:06.4]} 49...
Ne3 {[%clk 0:00:30.6]} 50. Be6 {[%clk 0:00:06.3]} 50... Rg2 {[%clk 0:00:28.9]}
51. Rxh6 {[%clk 0:00:06.3]} 51... Nd1 {[%clk 0:00:29.3]} 52. Rh7 {[%clk
0:00:05.3]} 52... Rxb2+ {[%clk 0:00:29.2]} 53. Ka3 {[%clk 0:00:06]} 53... Rb1
{[%clk 0:00:23.3]} 54. Bc8 {[%clk 0:00:06.3]} 54... Ka7 {[%clk 0:00:22.1]} 55.
Ka2 {[%clk 0:00:04.5]} 55... Nxc3+ {[%clk 0:00:22.4]} 56. Ka3 {[%clk 0:00:04.2]}
56... a5 {[%clk 0:00:23.3]} 57. Be6 {[%clk 0:00:03.1]} 57... Kb8 {[%clk
0:00:22.1]} 58. Rg7 {[%clk 0:00:03.3]} 58... b5 {[%clk 0:00:22.3]} 59. axb5
{[%clk 0:00:02.8]} 59... cxb5 {[%clk 0:00:23.2]} 60. Rg8+ {[%clk 0:00:02.6]}
60... Kc7 {[%clk 0:00:23.1]} 61. Rg7+ {[%clk 0:00:02.1]} 61... Kd6 {[%clk
0:00:23.3]} 62. Ba2 {[%clk 0:00:02.2]} 62... b4# {[%clk 0:00:23.2]} 0-1

[Event "Early-Titled-Tuesday-Blitz-January-16-2024"]
[Site "Chess.com"]
[Date "2024.01.16"]
[Round "5"]
[White "Zurability"]
[Black "NikaVolkov"]
[Result "1/2-1/2"]
[WhiteElo "2720"]
[BlackElo "2588"]
[TimeControl "180+1"]
[EndTime "8:59:29 PST"]
[Termination "Game drawn by repetition"]

1. d4 {[%clk 0:03:00.9]} 1... Nf6 {[%clk 0:02:58.2]} 2. c4 {[%clk 0:02:54.5]}
2... e6 {[%clk 0:02:51.8]} 3. Nf3 {[%clk 0:02:54.2]} 3... b6 {[%clk 0:02:51.6]}
4. a3 {[%clk 0:02:54.2]} 4... Bb7 {[%clk 0:02:51.2]} 5. Nc3 {[%clk 0:02:54.3]}
5... d5 {[%clk 0:02:51]} 6. cxd5 {[%clk 0:02:49.8]} 6... exd5 {[%clk 0:02:51.3]}
7. Bg5 {[%clk 0:02:47.5]} 7... Be7 {[%clk 0:02:51.5]} 8. e3 {[%clk 0:02:48.1]}
8... O-O {[%clk 0:02:52]} 9. Bd3 {[%clk 0:02:48.7]} 9... Nbd7 {[%clk 0:02:52.5]}
10. O-O {[%clk 0:02:49.3]} 10... c5 {[%clk 0:02:52.7]} 11. Rc1 {[%clk
0:02:49.4]} 11... h6 {[%clk 0:02:52.9]} 12. Bh4 {[%clk 0:02:45.9]} 12... Re8
{[%clk 0:02:51.7]} 13. Bb1 {[%clk 0:02:32]} 13... Ne4 {[%clk 0:02:48.5]} 14.
Bxe7 {[%clk 0:02:28.3]} 14... Qxe7 {[%clk 0:02:49.4]} 15. dxc5 {[%clk
0:02:17.7]} 15... Nxc3 {[%clk 0:02:46.3]} 16. Rxc3 {[%clk 0:02:10.8]} 16... bxc5
{[%clk 0:02:46.5]} 17. Qd3 {[%clk 0:02:05.3]} 17... g6 {[%clk 0:02:45.9]} 18. h3
{[%clk 0:01:51.5]} 18... Qf6 {[%clk 0:02:43.3]} 19. Rd1 {[%clk 0:01:48.5]} 19...
Rad8 {[%clk 0:02:33]} 20. Ba2 {[%clk 0:01:42]} 20... Kg7 {[%clk 0:01:38]} 21.
Qc2 {[%clk 0:01:14.5]} 21... d4 {[%clk 0:01:08.7]} 22. exd4 {[%clk 0:01:07.5]}
22... cxd4 {[%clk 0:01:09.6]} 23. Nxd4 {[%clk 0:00:56]} 23... Ne5 {[%clk
0:00:58.3]} 24. Rc7 {[%clk 0:00:41.8]} 24... Bd5 {[%clk 0:00:29.5]} 25. Nf5+
{[%clk 0:00:22.5]} 25... gxf5 {[%clk 0:00:21]} 26. Bxd5 {[%clk 0:00:15]} 26...
f4 {[%clk 0:00:14]} 27. Be4 {[%clk 0:00:05]} 27... f3 {[%clk 0:00:12.9]} 28. g3
{[%clk 0:00:04.4]} 28... Qb6 {[%clk 0:00:08.5]} 29. Rc3 {[%clk 0:00:02.1]} 29...
Rxd1+ {[%clk 0:00:07.2]} 30. Qxd1 {[%clk 0:00:03]} 30... Qxb2 {[%clk 0:00:07.8]}
31. Rc2 {[%clk 0:00:03.1]} 31... Qxa3 {[%clk 0:00:06.6]} 32. Bd5 {[%clk
0:00:03.3]} 32... Qd6 {[%clk 0:00:04.9]} 33. Rd2 {[%clk 0:00:03.8]} 33... Qg6
{[%clk 0:00:04.2]} 34. Bb3 {[%clk 0:00:04.2]} 34... Kf8 {[%clk 0:00:04.5]} 35.
h4 {[%clk 0:00:04.5]} 35... Qf5 {[%clk 0:00:04.7]} 36. Bc4 {[%clk 0:00:04.1]}
36... Qh3 {[%clk 0:00:04.9]} 37. Bf1 {[%clk 0:00:04.2]} 37... Qe6 {[%clk
0:00:05.3]} 38. Rd6 {[%clk 0:00:04.3]} 38... Qf5 {[%clk 0:00:05.7]} 39. Rxh6
{[%clk 0:00:04.7]} 39... a5 {[%clk 0:00:05.2]} 40. Qd6+ {[%clk 0:00:05.2]} 40...
Kg7 {[%clk 0:00:04.8]} 41. Qb6 {[%clk 0:00:04.9]} 41... Ng6 {[%clk 0:00:04.9]}
42. Rxg6+ {[%clk 0:00:05]} 42... fxg6 {[%clk 0:00:05.8]} 43. Qa7+ {[%clk
0:00:05]} 43... Kh6 {[%clk 0:00:05.7]} 44. Qc7 {[%clk 0:00:04.8]} 44... Re1
{[%clk 0:00:05.2]} 45. Qc3 {[%clk 0:00:04.7]} 45... Qb1 {[%clk 0:00:03.2]} 46.
Qd2+ {[%clk 0:00:05]} 46... Kh7 {[%clk 0:00:03.7]} 47. Qd7+ {[%clk 0:00:05.2]}
47... Kh6 {[%clk 0:00:04.1]} 48. Qd2+ {[%clk 0:00:05.2]} 48... Kg7 {[%clk
0:00:04.8]} 49. Qd7+ {[%clk 0:00:04.3]} 49... Kf6 {[%clk 0:00:05.4]} 50. Qd4+
{[%clk 0:00:04.5]} 50... Ke6 {[%clk 0:00:05.1]} 51. Qc4+ {[%clk 0:00:04.5]}
51... Kd6 {[%clk 0:00:05.7]} 52. Qd4+ {[%clk 0:00:04.6]} 52... Kc6 {[%clk
0:00:06.4]} 53. Qc4+ {[%clk 0:00:05.2]} 53... Kb6 {[%clk 0:00:07.1]} 54. Qa6+
{[%clk 0:00:05.8]} 54... Kc5 {[%clk 0:00:07.3]} 55. Qc4+ {[%clk 0:00:06.3]}
55... Kd6 {[%clk 0:00:08]} 56. Qd4+ {[%clk 0:00:07]} 56... Ke7 {[%clk
0:00:08.4]} 57. Qc5+ {[%clk 0:00:07]} 57... Kf6 {[%clk 0:00:08.6]} 58. Qd4+
{[%clk 0:00:06.8]} 58... Ke7 {[%clk 0:00:08.2]} 59. Qc5+ {[%clk 0:00:07]} 59...
Ke6 {[%clk 0:00:07.9]} 60. Qc4+ {[%clk 0:00:07.4]} 60... Ke5 {[%clk 0:00:07]}
61. Qc5+ {[%clk 0:00:07.5]} 61... Kf6 {[%clk 0:00:07.4]} 62. Qd4+ {[%clk
0:00:07.4]} 1/2-1/2